Workbook

Sheet Start
B2: Preisdifferenzierung
B4: Welche Marktform liegt vor?
B9: Hinweise:
B10: Mit der voliegenden Anwendungen können die Auswirkungen von Preisdifferenzierungen
B11: im einem unvollkommenen Markt und bei einer monopolistischen Markform
B12: simliert werden.
B14: Bei vorliegenden Preis-Absatz- und Kostenfunktionen wird in jeder Marktform zunächst
B15: das Gewinnmaximum (Cournotscher Punkt) für eine Preis-Mengen-Kombination
B16: ermittelt.
B17: Von dem Cournotschen Preis können in jeder Marktform zwei abweichende Preise
B18: angegeben und die Auswirkungen auf den Gesamtgewinn simuliert werden.
B20: Preis-Absatz- und Kostenfunktionen können in die entsprechenden Zellen eingegeben
B21: werden.
B22: Musterfunktionen können jeweils von der Seite "Funktionen" kopiert und in die
B23: entsprechenden Zellen bei den beiden Marktformen eingefügt werden.

Sheet unvollkommenerMarkt
B2: Preisdifferenzierung im unvollkommen Markt und Oligopol
Y3: Tabellen für die graphische Darstellung der Preis-Absatz-Funktion
I4: Gewinnmaximum ohne Preisdifferenzierung | P4: Notwendige Berechnungen zur Zuweisung der Preise p2 und p3 zu den definierten Abschnitten der Preis-Absatz-Funktion und Berechnung der zugehörigen Absatzmengen. | U4: Erlöse in Abhängikeit von der Preisstruktur | Y4: X | Z4: PAF1 | AA4: PAF2 | AB4: PAF3 | AC4: PAF | AD4: X | AE4: Zeilen | AF4: Definitionsbereiche
B5: Funktionen | D5: bX2 | E5: cX | F5: d | G5: d/X | K5: Gewinn | L5: Preis | M5: Menge | U5: pch-p2m-p3n | V5: p2h-pcm-p3n | W5: p3h-pcm-p2n | Y5: 0 | Z5: =$F$7+$E$7*Y5 -> 92 | AA5: =$F$8+$E$8*Y5 -> 125 | AB5: =$F$9+$E$9*Y5 -> 55 | AC5: =IF(AND($Z5<$AA5,$AA5>$AB5),Z5,IF(AND($AA5>$AB5,$Z5>$AB5),AA5,AB5)) -> 92 | AD5: =Y5 -> 0 | AE5: 0 | AF5: =IF(AC5=Z5,"PAF1",IF(AC5=AA5,"PAF2","PAF3")) -> PAF1 | AG5: =IF(AF5="PAF1",AD5,"") -> 0
B6: Gesamtkosten | C6: K= | E6: 5.8 | F6: 1900 | I6: PAF1 | J6: =IF(AND(M6<K11,M6>J11),"definiert","nicht definiert") -> nicht definiert | K6: =IF(J6="definiert",(M6*L6)-(F6+(E6*M6)),"") ->  | L6: =IF(J6="definiert",F7+(E7*M6),"") ->  | M6: =ROUND((F17-F13)/(E17*-1),0) -> 96 | U6: =(J18*N18)+((J16*N16)-(J16*N18))+((J17*N17)-(J17*N16)) -> 3920 | V6: =(J16*N16)+((J18*N18)-(J18*N16))+((J17*N17)-(J17*N18)) -> 4800 | W6: =(J17*N17)+((J18*N18)-(J18*N17))+((J16*N16)-(J16*N18)) -> -1630 | Y6: =F22/100 -> 1.83 | Z6: =$F$7+$E$7*Y6 -> 91.1765 | AA6: =$F$8+$E$8*Y6 -> 122.7125 | AB6: =$F$9+$E$9*Y6 -> 54.451 | AC6: =IF(AND($Z6<$AA6,$AA6>$AB6),Z6,IF(AND($AA6>$AB6,$Z6>$AB6),AA6,AB6)) -> 91.1765 | AD6: =Y6 -> 1.83 | AE6: 1 | AF6: PAF1 | AG6: =IF(AF6="PAF1",AD6,"") -> 1.83 | AH6: =IF(AF6="PAF2",AD6,"") ->  | AI6: =IF(AF6="PAF3",AD6,"") -> 
B7: Preis-Absatz-Funktion 1 | C7: p1= | E7: -0.45 | F7: 92 | I7: PAF2 | J7: =IF(AND(M7<K12,M7>J12),"definiert","nicht definiert") -> definiert | K7: =IF(J7="definiert",(M7*L7)-(F6+(E6*M7)),"") -> 941.6 | L7: =IF(J7="definiert",F8+(E8*M7),"") -> 65 | M7: =ROUND((F19-F13)/(E19*-1),0) -> 48 | U7: pch-p3m-p2n | V7: p2h-p3m-pcn | W7: p3h-p2m-pcn | Y7: =Y6+$Y$6 -> 3.66 | Z7: 90.353 | AA7: 120.425 | AB7: 53.902 | AC7: =IF(AND($Z7<$AA7,$AA7>$AB7),Z7,IF(AND($AA7>$AB7,$Z7>$AB7),AA7,AB7)) -> 90.353 | AD7: 3.66 | AE7: 2 | AF7: PAF1 | AG7: =IF(AF7="PAF1",AD7,"") -> 3.66 | AH7: =IF(AF7="PAF2",AD7,"") ->  | AI7: =IF(AF7="PAF3",AD7,"") -> 
B8: Preis-Absatz-Funktion 2 | C8: p2= | E8: -1.25 | F8: 125 | I8: PAF3 | J8: =IF(AND(M8<K13,M8>J13),"definiert","nicht definiert") -> definiert | K8: =IF(J8="definiert",(M8*L8)-(F6+(E6*M8)),"") -> 117.2 | L8: =IF(J8="definiert",F9+(E9*M8),"") -> 30.4 | M8: =ROUND((F21-F13)/(E21*-1),0) -> 82 | U8: =(J18*N18)+((J17*N17)-(J17*N18))+((J16*N16)-(J16*N17)) -> -230 | V8: =(J16*N16)+((J17*N17)-(J17*N16))+((J18*N18)-(J18*N17)) -> 1020 | W8: =(J17*N17)+((J16*N16)-(J16*N17))+((J18*N18)-(J18*N16)) -> -1500 | Y8: =Y7+$Y$6 -> 5.49 | Z8: 89.5295 | AA8: 118.1375 | AB8: 53.353 | AC8: 89.5295 | AD8: 5.49 | AE8: 3 | AF8: PAF1 | AG8: 5.49
B9: Preis-Absatz-Funktion 3 | C9: p3= | E9: -0.3 | F9: 55 | I9: Definitionsbereiche | L9: Cournotscher Punkt | P9: Preise an den Knickpunkte der Preis-Absatz-Funktionen | Y9: 7.32 | Z9: 88.706 | AA9: 115.85 | AB9: 52.804 | AC9: 88.706 | AD9: 7.32 | AE9: 4 | AF9: PAF1 | AG9: 7.32
B10: variable Gesamtkosten | C10: Kv= | E10: =E6 -> 5.8 | J10: xmin | K10: xmax | U10: Kosten in Abhängigkeit von der Preisstruktur | Y10: 9.15 | Z10: 87.8825 | AA10: 113.5625 | AB10: 52.255 | AC10: 87.8825 | AD10: 9.15 | AE10: 5 | AF10: PAF1 | AG10: 9.15
B11: Stückkosten | C11: k= | F11: =E6 -> 5.8 | G11: =F6 -> 1900 | I11: PAF1 | J11: 0 | K11: =ROUND((F8-F7)/(E7+E8*-1),0) -> 41 | L11: Gmax | M11: =MAX(K6:K8) -> 941.6 | P11: =F7 -> 92 | Q11: =F7+(E7*K11) -> 73.55 | U11: pch-p2m-p3n | V11: p2h-pcm-p3n | W11: p3h-pcm-p2n | Y11: 10.98 | Z11: 87.059 | AA11: 111.275 | AB11: 51.706 | AC11: 87.059 | AD11: 10.98 | AE11: 6 | AF11: PAF1 | AG11: 10.98
B12: variable Stückkosten | C12: kv= | F12: =E6 -> 5.8 | I12: PAF2 | J12: =ROUND(K11,0) -> 41 | K12: =ROUND((F9-F8)/(E8+E9*-1),0) -> 74 | L12: XGmax | M12: =ROUND(VLOOKUP(M11,K6:M8,3),0) -> 48 | P12: =F8+(E8*J12) -> 73.75 | Q12: =F8+(E8*K12) -> 32.5 | U12: =F6+(E6*N17) -> 2480 | V12: =F6+(E6*N17) -> 2480 | W12: =F6+(E6*N16) -> 2120.4 | Y12: 12.81 | Z12: 86.2355 | AA12: 108.9875 | AB12: 51.157 | AC12: 86.2355 | AD12: 12.81 | AE12: 7 | AF12: PAF1 | AG12: 12.81
B13: Grenzkosten | C13: K'= | F13: =E6 -> 5.8 | I13: PAF3 | J13: =K12 -> 74 | K13: =F22 -> 183 | L13: PGmax | M13: =VLOOKUP(M11,K6:M8,2) -> 65 | P13: =F9+(E9*J13) -> 32.8 | Q13: =F9+(E9*F22) -> 0.1 | U13: pch-p3m-p2n | V13: p2h-p3m-pcn | W13: p3h-p2m-pcn | Y13: 14.64 | Z13: 85.412 | AA13: 106.7 | AB13: 50.608 | AC13: 85.412 | AD13: 14.64 | AE13: 8 | AF13: PAF1 | AG13: 14.64
B14: fixe Gesamtkosten | C14: Kf= | F14: =F6 -> 1900 | P14: Mengen in Abhängigkeit von der Preisstruktur | U14: =F6+(E6*N16) -> 2120.4 | V14: =F6+(E6*N18) -> 2178.4 | W14: =F6+(E6*N18) -> 2178.4 | Y14: 16.47 | Z14: 84.5885 | AA14: 104.4125 | AB14: 50.059 | AC14: 84.5885 | AD14: 16.47 | AE14: 9 | AF14: PAF1 | AG14: 16.47
B15: fixe Stückkosten | C15: kf= | G15: =F6 -> 1900 | I15: Preisdifferenzierung | L15: Preisstruktur | N15: Menge | Y15: 18.3 | Z15: 83.765 | AA15: 102.125 | AB15: 49.51 | AC15: 83.765 | AD15: 18.3 | AE15: 10 | AF15: PAF1 | AG15: 18.3
B16: Erlös 1 | C16: E1= | D16: =E7 -> -0.45 | E16: =F7 -> 92 | I16: p2 | J16: 75 | K16: =IF(OR(J16>P11,N16<0),"nicht definiert","definiert") -> definiert | L16: =IF(AND(J16>J18,J16>J17),"Hochpreis",IF(AND(J16<J18,J16<J17),"Niedrigpreis","Mittelpreis")) -> Hochpreis | M16: =IF(L16="Hochpreis",1,IF(L16="Mittelpreis",2,3)) -> 1 | N16: =INT(ROUND(IF(AND(P17>=0,P17<=K11),P17,IF(AND(Q17>J12,Q17<=K12),Q17,R17)),0)) -> 38 | P16: x(p1) | Q16: x(p2) | R16: x(p3) | U16: Gewinn in Abhängigkeit von der Preisstruktur | Y16: 20.13 | Z16: 82.9415 | AA16: 99.8375 | AB16: 48.961 | AC16: 82.9415 | AD16: 20.13 | AE16: 11 | AF16: PAF1 | AG16: 20.13
B17: Grenzerlös 1 | C17: E1'= | E17: =2*D16 -> -0.9 | F17: =E16 -> 92 | I17: p3 | J17: 25 | K17: =IF(OR(J17>P11,N17<0),"nicht definiert","definiert") -> definiert | L17: =IF(AND(J17>J18,J17>J16),"Hochpreis",IF(AND(J17<J18,J17<J16),"Niedrigpreis","Mittelpreis")) -> Niedrigpreis | M17: =IF(L17="Hochpreis",1,IF(L17="Mittelpreis",2,3)) -> 3 | N17: =INT(ROUND(IF(AND(P18>=0,P18<=K11),P18,IF(AND(Q18>J12,Q18<=K12),Q18,R18)),0)) -> 100 | P17: =(F7-J16)/(E7*-1) -> 37.77777778 | Q17: =(F8-J16)/(E8*-1) -> 40 | R17: =(F9-J16)/(E9*-1) -> -66.66666667 | U17: pch-p2m-p3n | V17: p2h-pcm-p3n | W17: p3h-pcm-p2n | Y17: 21.96 | Z17: 82.118 | AA17: 97.55 | AB17: 48.412 | AC17: 82.118 | AD17: 21.96 | AE17: 12 | AF17: PAF1 | AG17: 21.96
B18: Erlös 2 | C18: E2= | D18: =E8 -> -1.25 | E18: =F8 -> 125 | I18: pc | J18: =M13 -> 65 | K18: definiert | L18: =IF(AND(J18>J16,J18>J17),"Hochpreis",IF(AND(J18<J16,J18<J17),"Niedrigpreis","Mittelpreis")) -> Mittelpreis | M18: =IF(L18="Hochpreis",1,IF(L18="Mittelpreis",2,3)) -> 2 | N18: =ROUND(M12,0) -> 48 | P18: =(F7-J17)/(E7*-1) -> 148.8888889 | Q18: =(F8-J17)/(E8*-1) -> 80 | R18: =(F9-J17)/(E9*-1) -> 100 | U18: =U6-U12 -> 1440 | V18: =V6-V12 -> 2320 | W18: =W6-W12 -> -3750.4 | Y18: 23.79 | Z18: 81.2945 | AA18: 95.2625 | AB18: 47.863 | AC18: 81.2945 | AD18: 23.79 | AE18: 13 | AF18: PAF1 | AG18: 23.79
B19: Grenzerlös 2 | C19: E2'= | E19: =2*D18 -> -2.5 | F19: =E18 -> 125 | U19: pch-p3m-p2n | V19: p2h-p3m-pcn | W19: p3h-p2m-pcn | Y19: 25.62 | Z19: 80.471 | AA19: 92.975 | AB19: 47.314 | AC19: 80.471 | AD19: 25.62 | AE19: 14 | AF19: PAF1 | AG19: 25.62
B20: Erlös 3 | C20: E3= | D20: =E9 -> -0.3 | E20: =F9 -> 55 | I20: Umsatz | J20: =IF(AND($M$18=1,$M$16=2),U6,IF(AND($M$18=1,$M$17=2),U8,IF(AND($M$16=1,$M$18=2),V6,IF(AND($M$16=1,$M$17=2),V8,IF(AND($M$17=1,$M$18=2),W6,W8))))) -> 4800 | K20: Gewinn mit Preisdifferenzierung | N20: =J22 -> 2320 | U20: =U8-U14 -> -2350.4 | V20: =V8-V14 -> -1158.4 | W20: =W8-W14 -> -3678.4 | Y20: 27.45 | Z20: 79.6475 | AA20: 90.6875 | AB20: 46.765 | AC20: 79.6475 | AD20: 27.45 | AE20: 15 | AF20: PAF1 | AG20: 27.45
B21: Grenzerlös 3 | C21: E3'= | E21: =2*D20 -> -0.6 | F21: =E20 -> 55 | I21: Kosten | J21: =IF(AND($M$18=1,$M$16=2),U12,IF(AND($M$18=1,$M$17=2),U14,IF(AND($M$16=1,$M$18=2),V12,IF(AND($M$16=1,$M$17=2),V14,IF(AND($M$17=1,$M$18=2),W12,W14))))) -> 2480 | K21: Gewinn ohne Preisdifferenzierung | N21: =M11 -> 941.6 | P21: Matrix der Preis-Absatz-Funktion (Datenreihen für dasPunktdiagramm) | Y21: 29.28 | Z21: 78.824 | AA21: 88.4 | AB21: 46.216 | AC21: 78.824 | AD21: 29.28 | AE21: 16 | AF21: PAF1 | AG21: 29.28
B22: Sättigungsmenge | C22: xmax= | F22: =ROUND((F9/E9)*-1,0) -> 183 | I22: Gewinn | J22: =IF(AND($M$18=1,$M$16=2),U18,IF(AND($M$18=1,$M$17=2),U20,IF(AND($M$16=1,$M$18=2),V18,IF(AND($M$16=1,$M$17=2),V20,IF(AND($M$17=1,$M$18=2),W18,W20))))) -> 2320 | K22: Differenz | N22: =N20-N21 -> 1378.4 | Y22: 31.11 | Z22: 78.0005 | AA22: 86.1125 | AB22: 45.667 | AC22: 78.0005 | AD22: 31.11 | AE22: 17 | AF22: PAF1 | AG22: 31.11
P23: PAF1 | Q23: 0 | R23: =P11 -> 92 | Y23: 32.94 | Z23: 77.177 | AA23: 83.825 | AB23: 45.118 | AC23: 77.177 | AD23: 32.94 | AE23: 18 | AF23: PAF1 | AG23: 32.94
Q24: =K11 -> 41 | R24: =Q11 -> 73.55 | Y24: 34.77 | Z24: 76.3535 | AA24: 81.5375 | AB24: 44.569 | AC24: 76.3535 | AD24: 34.77 | AE24: 19 | AF24: PAF1 | AG24: 34.77
B25: Hinweise: Die Kostenfunktion wird in die Zellen E6 - F6 eingetragen. (E6: mengenabhängiger Teil, variable Stückkosten; F6: konstanter Teil, fixe Kosten) | P25: PAF2 | Q25: =J12 -> 41 | R25: =P12 -> 73.75 | Y25: 36.6 | Z25: 75.53 | AA25: 79.25 | AB25: 44.02 | AC25: 75.53 | AD25: 36.6 | AE25: 20 | AF25: PAF1 | AG25: 36.6
B26: Die Preis-Absatz-Funktionen (p1, p2, p3) werden in die Zellen E7 - F9 eingetragen. (mengenabhängiger Teil in Spalte E, konstanter Teil in Spalte F) | Q26: =K12 -> 74 | R26: =Q12 -> 32.5 | Y26: 38.43 | Z26: 74.7065 | AA26: 76.9625 | AB26: 43.471 | AC26: 74.7065 | AD26: 38.43 | AE26: 21 | AF26: PAF1 | AG26: 38.43
B27: Gewinnänderungen aufgrund der Preisdifferenzierung werden in Zelle N22 angezeigt. | P27: PAF§ | Q27: =K12 -> 74 | R27: =P13 -> 32.8 | Y27: 40.26 | Z27: 73.883 | AA27: 74.675 | AB27: 42.922 | AC27: 73.883 | AD27: 40.26 | AE27: 22 | AF27: PAF1 | AG27: 40.26
B28: Musterfunktionen können von der Seite "Funktionen" kopiert und in die Zellen E6 - F9 eingefügt werden. | Q28: =K13 -> 183 | R28: 0 | Y28: 42.09 | Z28: 73.0595 | AA28: 72.3875 | AB28: 42.373 | AC28: 72.3875 | AD28: 42.09 | AE28: 23 | AF28: PAF2 | AH28: 42.09
Y29: 43.92 | Z29: 72.236 | AA29: 70.1 | AB29: 41.824 | AC29: 70.1 | AD29: 43.92 | AE29: 24 | AF29: PAF2 | AH29: 43.92
P30: Matrix der Preis-Mengen-Kombinationen (Datenreihen für das Punktdiagramm) | Y30: 45.75 | Z30: 71.4125 | AA30: 67.8125 | AB30: 41.275 | AC30: 67.8125 | AD30: 45.75 | AE30: 25 | AF30: PAF2 | AH30: 45.75
Y31: 47.58 | Z31: 70.589 | AA31: 65.525 | AB31: 40.726 | AC31: 65.525 | AD31: 47.58 | AE31: 26 | AF31: PAF2 | AH31: 47.58
P32: Cournotscher Punkt | Y32: 49.41 | Z32: 69.7655 | AA32: 63.2375 | AB32: 40.177 | AC32: 63.2375 | AD32: 49.41 | AE32: 27 | AF32: PAF2 | AH32: 49.41
P33: =M12 -> 48 | Q33: 0 | R33: 0 | S33: =M13 -> 65 | Y33: 51.24 | Z33: 68.942 | AA33: 60.95 | AB33: 39.628 | AC33: 60.95 | AD33: 51.24 | AE33: 28 | AF33: PAF2 | AH33: 51.24
P34: =M12 -> 48 | Q34: =M13 -> 65 | R34: =M12 -> 48 | S34: =M13 -> 65 | Y34: 53.07 | Z34: 68.1185 | AA34: 58.6625 | AB34: 39.079 | AC34: 58.6625 | AD34: 53.07 | AE34: 29 | AF34: PAF2 | AH34: 53.07
P35: Preis 2, Menge 2 | Y35: 54.9 | Z35: 67.295 | AA35: 56.375 | AB35: 38.53 | AC35: 56.375 | AD35: 54.9 | AE35: 30 | AF35: PAF2 | AH35: 54.9
P36: =N16 -> 38 | Q36: 0 | R36: 0 | S36: =J16 -> 75 | Y36: 56.73 | Z36: 66.4715 | AA36: 54.0875 | AB36: 37.981 | AC36: 54.0875 | AD36: 56.73 | AE36: 31 | AF36: PAF2 | AH36: 56.73
P37: =N16 -> 38 | Q37: =J16 -> 75 | R37: =N16 -> 38 | S37: =J16 -> 75 | Y37: 58.56 | Z37: 65.648 | AA37: 51.8 | AB37: 37.432 | AC37: 51.8 | AD37: 58.56 | AE37: 32 | AF37: PAF2 | AH37: 58.56
P38: Preis 3, Menge 3 | Y38: 60.39 | Z38: 64.8245 | AA38: 49.5125 | AB38: 36.883 | AC38: 49.5125 | AD38: 60.39 | AE38: 33 | AF38: PAF2 | AH38: 60.39
P39: =N17 -> 100 | Q39: 0 | R39: 0 | S39: =J17 -> 25 | Y39: 62.22 | Z39: 64.001 | AA39: 47.225 | AB39: 36.334 | AC39: 47.225 | AD39: 62.22 | AE39: 34 | AF39: PAF2 | AH39: 62.22
P40: =N17 -> 100 | Q40: =J17 -> 25 | R40: =N17 -> 100 | S40: =J17 -> 25 | Y40: 64.05 | Z40: 63.1775 | AA40: 44.9375 | AB40: 35.785 | AC40: 44.9375 | AD40: 64.05 | AE40: 35 | AF40: PAF2 | AH40: 64.05
Y41: 65.88 | Z41: 62.354 | AA41: 42.65 | AB41: 35.236 | AC41: 42.65 | AD41: 65.88 | AE41: 36 | AF41: PAF2 | AH41: 65.88
Y42: 67.71 | Z42: 61.5305 | AA42: 40.3625 | AB42: 34.687 | AC42: 40.3625 | AD42: 67.71 | AE42: 37 | AF42: PAF2 | AH42: 67.71
Y43: 69.54 | Z43: 60.707 | AA43: 38.075 | AB43: 34.138 | AC43: 38.075 | AD43: 69.54 | AE43: 38 | AF43: PAF2 | AH43: 69.54
Y44: 71.37 | Z44: 59.8835 | AA44: 35.7875 | AB44: 33.589 | AC44: 35.7875 | AD44: 71.37 | AE44: 39 | AF44: PAF2 | AH44: 71.37
Y45: 73.2 | Z45: 59.06 | AA45: 33.5 | AB45: 33.04 | AC45: 33.5 | AD45: 73.2 | AE45: 40 | AF45: PAF2 | AH45: 73.2
Y46: 75.03 | Z46: 58.2365 | AA46: 31.2125 | AB46: 32.491 | AC46: 32.491 | AD46: 75.03 | AE46: 41 | AF46: PAF3 | AI46: 75.03
Y47: 76.86 | Z47: 57.413 | AA47: 28.925 | AB47: 31.942 | AC47: 31.942 | AD47: 76.86 | AE47: 42 | AF47: PAF3 | AI47: 76.86
Y48: 78.69 | Z48: 56.5895 | AA48: 26.6375 | AB48: 31.393 | AC48: 31.393 | AD48: 78.69 | AE48: 43 | AF48: PAF3 | AI48: 78.69
Y49: 80.52 | Z49: 55.766 | AA49: 24.35 | AB49: 30.844 | AC49: 30.844 | AD49: 80.52 | AE49: 44 | AF49: PAF3 | AI49: 80.52
Y50: 82.35 | Z50: 54.9425 | AA50: 22.0625 | AB50: 30.295 | AC50: 30.295 | AD50: 82.35 | AE50: 45 | AF50: PAF3 | AI50: 82.35
Y51: 84.18 | Z51: 54.119 | AA51: 19.775 | AB51: 29.746 | AC51: 29.746 | AD51: 84.18 | AE51: 46 | AF51: PAF3 | AI51: 84.18
Y52: 86.01 | Z52: 53.2955 | AA52: 17.4875 | AB52: 29.197 | AC52: 29.197 | AD52: 86.01 | AE52: 47 | AF52: PAF3 | AI52: 86.01
Y53: 87.84 | Z53: 52.472 | AA53: 15.2 | AB53: 28.648 | AC53: 28.648 | AD53: 87.84 | AE53: 48 | AF53: PAF3 | AI53: 87.84
Y54: 89.67 | Z54: 51.6485 | AA54: 12.9125 | AB54: 28.099 | AC54: 28.099 | AD54: 89.67 | AE54: 49 | AF54: PAF3 | AI54: 89.67
Y55: 91.5 | Z55: 50.825 | AA55: 10.625 | AB55: 27.55 | AC55: 27.55 | AD55: 91.5 | AE55: 50 | AF55: PAF3 | AI55: 91.5
Y56: 93.33 | Z56: 50.0015 | AA56: 8.3375 | AB56: 27.001 | AC56: 27.001 | AD56: 93.33 | AE56: 51 | AF56: PAF3 | AI56: 93.33
B57: Berechnungen: Spalte P - AI; Schriftfarbe: weiß | Y57: 95.16 | Z57: 49.178 | AA57: 6.05 | AB57: 26.452 | AC57: 26.452 | AD57: 95.16 | AE57: 52 | AF57: PAF3 | AI57: 95.16
Y58: 96.99 | Z58: 48.3545 | AA58: 3.7625 | AB58: 25.903 | AC58: 25.903 | AD58: 96.99 | AE58: 53 | AF58: PAF3 | AI58: 96.99
Y59: 98.82 | Z59: 47.531 | AA59: 1.475 | AB59: 25.354 | AC59: 25.354 | AD59: 98.82 | AE59: 54 | AF59: PAF3 | AI59: 98.82
Y60: 100.65 | Z60: 46.7075 | AA60: -0.8125 | AB60: 24.805 | AC60: 24.805 | AD60: 100.65 | AE60: 55 | AF60: PAF3 | AI60: 100.65
Y61: 102.48 | Z61: 45.884 | AA61: -3.1 | AB61: 24.256 | AC61: 24.256 | AD61: 102.48 | AE61: 56 | AF61: PAF3 | AI61: 102.48
Y62: 104.31 | Z62: 45.0605 | AA62: -5.3875 | AB62: 23.707 | AC62: 23.707 | AD62: 104.31 | AE62: 57 | AF62: PAF3 | AI62: 104.31
Y63: 106.14 | Z63: 44.237 | AA63: -7.675 | AB63: 23.158 | AC63: 23.158 | AD63: 106.14 | AE63: 58 | AF63: PAF3 | AI63: 106.14
Y64: 107.97 | Z64: 43.4135 | AA64: -9.9625 | AB64: 22.609 | AC64: 22.609 | AD64: 107.97 | AE64: 59 | AF64: PAF3 | AI64: 107.97
Y65: 109.8 | Z65: 42.59 | AA65: -12.25 | AB65: 22.06 | AC65: 22.06 | AD65: 109.8 | AE65: 60 | AF65: PAF3 | AI65: 109.8
Y66: 111.63 | Z66: 41.7665 | AA66: -14.5375 | AB66: 21.511 | AC66: 21.511 | AD66: 111.63 | AE66: 61 | AF66: PAF3 | AI66: 111.63
Y67: 113.46 | Z67: 40.943 | AA67: -16.825 | AB67: 20.962 | AC67: 20.962 | AD67: 113.46 | AE67: 62 | AF67: PAF3 | AI67: 113.46
Y68: 115.29 | Z68: 40.1195 | AA68: -19.1125 | AB68: 20.413 | AC68: 20.413 | AD68: 115.29 | AE68: 63 | AF68: PAF3 | AI68: 115.29
Y69: 117.12 | Z69: 39.296 | AA69: -21.4 | AB69: 19.864 | AC69: 19.864 | AD69: 117.12 | AE69: 64 | AF69: =IF(AC69=Z69,"PAF1",IF(AC69=AA69,"PAF2","PAF3")) -> PAF3 | AI69: 117.12
Y70: 118.95 | Z70: =$F$7+$E$7*Y70 -> 38.4725 | AA70: =$F$8+$E$8*Y70 -> -23.6875 | AB70: =$F$9+$E$9*Y70 -> 19.315 | AC70: 19.315 | AD70: =Y70 -> 118.95 | AE70: 65 | AF70: PAF3 | AI70: 118.95
Y71: 120.78 | Z71: 37.649 | AA71: -25.975 | AB71: 18.766 | AC71: =IF(AND($Z71<$AA71,$AA71>$AB71),Z71,IF(AND($AA71>$AB71,$Z71>$AB71),AA71,AB71)) -> 18.766 | AD71: 120.78 | AE71: 66 | AF71: PAF3 | AG71: =IF(AF71="PAF1",AD71,"") ->  | AH71: =IF(AF71="PAF2",AD71,"") ->  | AI71: =IF(AF71="PAF3",AD71,"") -> 120.78
Y72: =Y71+$Y$6 -> 122.61 | Z72: 36.8255 | AA72: -28.2625 | AB72: 18.217 | AC72: 18.217 | AD72: 122.61 | AE72: 67 | AF72: PAF3 | AI72: 122.61
Y73: 124.44 | Z73: 36.002 | AA73: -30.55 | AB73: 17.668 | AC73: 17.668 | AD73: 124.44 | AE73: 68 | AF73: PAF3 | AI73: 124.44
Y74: 126.27 | Z74: 35.1785 | AA74: -32.8375 | AB74: 17.119 | AC74: 17.119 | AD74: 126.27 | AE74: 69 | AF74: PAF3 | AI74: 126.27
Y75: 128.1 | Z75: 34.355 | AA75: -35.125 | AB75: 16.57 | AC75: 16.57 | AD75: 128.1 | AE75: 70 | AF75: PAF3 | AI75: 128.1
Y76: 129.93 | Z76: 33.5315 | AA76: -37.4125 | AB76: 16.021 | AC76: 16.021 | AD76: 129.93 | AE76: 71 | AF76: PAF3 | AI76: 129.93
Y77: 131.76 | Z77: 32.708 | AA77: -39.7 | AB77: 15.472 | AC77: 15.472 | AD77: 131.76 | AE77: 72 | AF77: PAF3 | AI77: 131.76
Y78: 133.59 | Z78: 31.8845 | AA78: -41.9875 | AB78: 14.923 | AC78: 14.923 | AD78: 133.59 | AE78: 73 | AF78: PAF3 | AI78: 133.59
Y79: 135.42 | Z79: 31.061 | AA79: -44.275 | AB79: 14.374 | AC79: 14.374 | AD79: 135.42 | AE79: 74 | AF79: PAF3 | AI79: 135.42
Y80: 137.25 | Z80: 30.2375 | AA80: -46.5625 | AB80: 13.825 | AC80: 13.825 | AD80: 137.25 | AE80: 75 | AF80: PAF3 | AI80: 137.25
Y81: 139.08 | Z81: 29.414 | AA81: -48.85 | AB81: 13.276 | AC81: 13.276 | AD81: 139.08 | AE81: 76 | AF81: PAF3 | AI81: 139.08
Y82: 140.91 | Z82: 28.5905 | AA82: -51.1375 | AB82: 12.727 | AC82: 12.727 | AD82: 140.91 | AE82: 77 | AF82: PAF3 | AI82: 140.91
Y83: 142.74 | Z83: 27.767 | AA83: -53.425 | AB83: 12.178 | AC83: 12.178 | AD83: 142.74 | AE83: 78 | AF83: PAF3 | AI83: 142.74
Y84: 144.57 | Z84: 26.9435 | AA84: -55.7125 | AB84: 11.629 | AC84: 11.629 | AD84: 144.57 | AE84: 79 | AF84: PAF3 | AI84: 144.57
Y85: 146.4 | Z85: 26.12 | AA85: -58 | AB85: 11.08 | AC85: 11.08 | AD85: 146.4 | AE85: 80 | AF85: PAF3 | AI85: 146.4
Y86: 148.23 | Z86: 25.2965 | AA86: -60.2875 | AB86: 10.531 | AC86: 10.531 | AD86: 148.23 | AE86: 81 | AF86: PAF3 | AI86: 148.23
Y87: 150.06 | Z87: 24.473 | AA87: -62.575 | AB87: 9.982 | AC87: 9.982 | AD87: 150.06 | AE87: 82 | AF87: PAF3 | AI87: 150.06
Y88: 151.89 | Z88: 23.6495 | AA88: -64.8625 | AB88: 9.433 | AC88: 9.433 | AD88: 151.89 | AE88: 83 | AF88: PAF3 | AI88: 151.89
Y89: 153.72 | Z89: 22.826 | AA89: -67.15 | AB89: 8.884 | AC89: 8.884 | AD89: 153.72 | AE89: 84 | AF89: PAF3 | AI89: 153.72
Y90: 155.55 | Z90: 22.0025 | AA90: -69.4375 | AB90: 8.335 | AC90: 8.335 | AD90: 155.55 | AE90: 85 | AF90: PAF3 | AI90: 155.55
Y91: 157.38 | Z91: 21.179 | AA91: -71.725 | AB91: 7.786 | AC91: 7.786 | AD91: 157.38 | AE91: 86 | AF91: PAF3 | AI91: 157.38
Y92: 159.21 | Z92: 20.3555 | AA92: -74.0125 | AB92: 7.237 | AC92: 7.237 | AD92: 159.21 | AE92: 87 | AF92: PAF3 | AI92: 159.21
Y93: 161.04 | Z93: 19.532 | AA93: -76.3 | AB93: 6.688 | AC93: 6.688 | AD93: 161.04 | AE93: 88 | AF93: PAF3 | AI93: 161.04
Y94: 162.87 | Z94: 18.7085 | AA94: -78.5875 | AB94: 6.139 | AC94: 6.139 | AD94: 162.87 | AE94: 89 | AF94: PAF3 | AI94: 162.87
Y95: 164.7 | Z95: 17.885 | AA95: -80.875 | AB95: 5.59 | AC95: 5.59 | AD95: 164.7 | AE95: 90 | AF95: PAF3 | AI95: 164.7
Y96: 166.53 | Z96: 17.0615 | AA96: -83.1625 | AB96: 5.041 | AC96: 5.041 | AD96: 166.53 | AE96: 91 | AF96: PAF3 | AI96: 166.53
Y97: 168.36 | Z97: 16.238 | AA97: -85.45 | AB97: 4.492 | AC97: 4.492 | AD97: 168.36 | AE97: 92 | AF97: PAF3 | AI97: 168.36
Y98: 170.19 | Z98: 15.4145 | AA98: -87.7375 | AB98: 3.943 | AC98: 3.943 | AD98: 170.19 | AE98: 93 | AF98: PAF3 | AI98: 170.19
Y99: 172.02 | Z99: 14.591 | AA99: -90.025 | AB99: 3.394 | AC99: 3.394 | AD99: 172.02 | AE99: 94 | AF99: PAF3 | AI99: 172.02
Y100: 173.85 | Z100: 13.7675 | AA100: -92.3125 | AB100: 2.845 | AC100: 2.845 | AD100: 173.85 | AE100: 95 | AF100: PAF3 | AI100: 173.85
Y101: 175.68 | Z101: 12.944 | AA101: -94.6 | AB101: 2.296 | AC101: 2.296 | AD101: 175.68 | AE101: 96 | AF101: PAF3 | AI101: 175.68
Y102: 177.51 | Z102: 12.1205 | AA102: -96.8875 | AB102: 1.747 | AC102: 1.747 | AD102: 177.51 | AE102: 97 | AF102: PAF3 | AI102: 177.51
Y103: 179.34 | Z103: 11.297 | AA103: -99.175 | AB103: 1.198 | AC103: 1.198 | AD103: 179.34 | AE103: 98 | AF103: PAF3 | AI103: 179.34
Y104: 181.17 | Z104: 10.4735 | AA104: -101.4625 | AB104: 0.649 | AC104: 0.649 | AD104: 181.17 | AE104: 99 | AF104: PAF3 | AI104: 181.17
Y105: =F22 -> 183 | Z105: 9.65 | AA105: -103.75 | AB105: 0.1 | AC105: 0.1 | AD105: 183 | AE105: 100 | AF105: PAF3 | AI105: 183

Sheet FunktionenunvollkommenerMark
B4: Aufgabe 1 | D4: Aufgabe 2 | F4: Aufgabe 3 | H4: Aufgabe 4 | J4: Aufgabe 5 | L4: Aufgabe 6 | N4: Aufgabe 7 | P4: Aufgabe 8
A5: K | B5: 4 | C5: 5100 | D5: 2 | E5: 2450 | F5: 14 | G5: 5000 | H5: 5 | I5: 450 | J5: 5 | K5: 450 | L5: 4 | M5: 2950 | N5: 6.8 | O5: 580 | P5: 9 | Q5: 3250
A6: PAF1 | B6: -0.00125 | C6: 15 | D6: -0.45 | E6: 92 | F6: -0.2 | G6: 100 | H6: -0.2 | I6: 200 | J6: -0.45 | K6: 1000 | L6: -0.355 | M6: 85 | N6: -1.15 | O6: 85 | P6: -0.1985 | Q6: 100
A7: PAF2 | B7: -0.01 | C7: 22 | D7: -0.85 | E7: 110.8 | F7: -0.5 | G7: 120 | H7: -0.5 | I7: 280 | J7: -0.85 | K7: 1200 | L7: -0.945 | M7: 120 | N7: -2.4 | O7: 105 | P7: -0.5015 | Q7: 120
A8: PAF3 | B8: -0.002 | C8: 12 | D8: -0.3 | E8: 60 | F8: -0.1 | G8: 60 | H8: -0.1 | I8: 100 | J8: -0.55 | K8: 900 | L8: -0.295 | M8: 65 | N8: -0.95 | O8: 65 | P8: -0.1055 | Q8: 60
B10: Aufgabe 9 | D10: Aufgabe 10 | F10: Aufgabe 10 | H10: Aufgabe 11 | J10: Aufgabe 12 | L10: Aufgabe 13 | N10: Aufgabe 14 | P10: Aufgabe 15
A11: K | B11: 5.8 | C11: 1900 | D11: 89 | E11: 29950 | F11: 12 | G11: 5100 | H11: 65 | I11: 650 | J11: 45 | K11: 4500 | L11: 477.5 | M11: 120000 | N11: 25 | O11: 15 | P11: 4 | Q11: 2500
A12: PAF1 | B12: -0.45 | C12: 92 | D12: -2.2 | E12: 920 | F12: -0.25 | G12: 150 | H12: -0.4 | I12: 115 | J12: -0.5 | K12: 210 | L12: -0.2 | M12: 1200 | N12: -2 | O12: 50 | P12: -0.002 | Q12: 16
A13: PAF2 | B13: -1.25 | C13: 125 | D13: -4.4 | E13: 1100 | F13: -0.5 | G13: 190 | H13: -1 | I13: 130 | J13: -0.75 | K13: 225 | L13: -0.85 | M13: 1400 | N13: -5 | O13: 80 | P13: -0.01 | Q13: 22
A14: PAF3 | B14: -0.3 | C14: 55 | D14: -3.1 | E14: 925 | F14: -0.25 | G14: 120 | H14: -0.4 | I14: 109 | J14: -0.3 | K14: 171 | L14: -0.55 | M14: 1000 | N14: -1 | O14: 30 | P14: -0.002 | Q14: 15
A17: K
A18: PAF1
A19: PAF2
A20: PAF3
A24: Hinweis: Sie können Funktionen markieren und kopieren und dann in die Felder E6 - F9 in der Tabelle "unvollkommener Markt" einfügen. Das Gewinnmaximum (Cournotscher Punkt) wird dann ermittelt.

Sheet Monopol
B2: Preisdifferenzierung im Monopol
N4: Erlöse in Abhängikeit von der Preisstruktur | R4: X | S4: PAF
B5: Funktionen | D5: bX2 | E5: cX | F5: d | G5: d/X | N5: pch-p2m-p3n | O5: p2h-pcm-p3n | P5: p3h-pcm-p2n | R5: 0 | S5: =$F$7+$E$7*R5 -> 6
B6: Gesamtkosten | C6: K= | E6: 1.5 | F6: 150 | N6: =(C26*G26)+((C24*G24)-(C24*G26))+((C25*G25)-(C25*G24)) -> 618.6549765 | O6: =(C24*G24)+((C26*G26)-(C26*G24))+((C25*G25)-(C25*G26)) -> 868.6972092 | P6: =(C25*G25)+((C26*G26)-(C26*G25))+((C24*G24)-(C24*G26)) -> 268.7394418 | R6: =R105/100 -> 6 | S6: =$F$7+$E$7*R6 -> 5.939988738
B7: Preis-Absatz-Funktion | C7: p= | E7: -0.01000187701 | F7: 6 | N7: pch-p3m-p2n | O7: p2h-p3m-pcn | P7: p3h-p2m-pcn | R7: =R6+$R$6 -> 12 | S7: =$F$7+$E$7*R7 -> 5.879977476
B8: variable Gesamtkosten | C8: Kv= | E8: =E6 -> 1.5 | N8: =(C26*G26)+((C25*G25)-(C25*G26))+((C24*G24)-(C24*G25)) -> 243.6549765 | O8: =(C24*G24)+((C25*G25)-(C25*G24))+((C26*G26)-(C26*G25)) -> 993.7394418 | P8: =(C25*G25)+((C24*G24)-(C24*G25))+((C26*G26)-(C26*G24)) -> 768.6972092 | R8: =R7+$R$6 -> 18 | S8: 5.819966214
B9: Stückkosten | C9: k= | F9: =E6 -> 1.5 | G9: =F6 -> 150 | R9: 24 | S9: 5.759954952
B10: variable Stückkosten | C10: kv= | F10: =E6 -> 1.5 | H10: Hinweise: Die Kostenfunktion wird in die Zellen E6 - F6 | N10: Kosten in Abhängigkeit von der Preisstruktur | R10: 30 | S10: 5.69994369
B11: Grenzkosten | C11: K'= | F11: =E6 -> 1.5 | H11: eingetragen. (E6: mengenabhängiger Teil, | N11: pch-p2m-p3n | O11: p2h-pcm-p3n | P11: p3h-pcm-p2n | R11: 36 | S11: 5.639932428
B12: fixe Gesamtkosten | C12: Kf= | F12: =F6 -> 150 | H12: variable Stückkosten; F6: konstanter Teil, fixe Kosten) | N12: =F6+(E6*G25) -> 450 | O12: =F6+(E6*G25) -> 450 | P12: =F6+(E6*G24) -> 300 | R12: 42 | S12: 5.579921166
B13: fixe Stückkosten | C13: kf= | G13: =F6 -> 150 | H13: Die Preis-Absatz-Funktion wird in die Zellen | N13: pch-p3m-p2n | O13: p2h-p3m-pcn | P13: p3h-p2m-pcn | R13: 48 | S13: 5.519909904
B14: Erlös | C14: E= | D14: =E7 -> -0.01000187701 | E14: =F7 -> 6 | H14: E7 - F7 eingetragen. (mengenabhängiger Teil in Spalte E, | N14: =F6+(E6*G24) -> 300 | O14: =F6+(E6*G26) -> 487.5 | P14: =F6+(E6*G26) -> 487.5 | R14: 54 | S14: 5.459898642
B15: Grenzerlös | C15: E'= | E15: =D14*2 -> -0.02000375402 | F15: =E14 -> 6 | H15: konstanter Teil in Spalte F) | R15: 60 | S15: 5.39988738
B16: Sättigungsmenge | C16: xmax= | F16: =ROUND(F7/E7*-1,0) -> 600 | H16: Gewinnänderungen aufgrund der Preisdifferenzierung | N16: Gewinn in Abhängigkeit von der Preisstruktur | R16: 66 | S16: 5.339876117
H17: werden in Zelle G30 angezeigt. | N17: pch-p2m-p3n | O17: p2h-pcm-p3n | P17: p3h-pcm-p2n | R17: 72 | S17: 5.279864855
C18: Gewinnmaximum (Cournotscher Punkt) | H18: Musterfunktionen können von der Seite "Funktionen" | N18: =N6-N12 -> 168.6549765 | O18: =O6-O12 -> 418.6972092 | P18: =P6-P12 -> -31.26055817 | R18: 78 | S18: 5.219853593
H19: kopiert und in die Zellen E6 - F7 eingefügt werden. | N19: pch-p3m-p2n | O19: p2h-p3m-pcn | P19: p3h-p2m-pcn | R19: 84 | S19: 5.159842331
C20: XGmax | D20: PGmax | E20: Gmax | F20: E | G20: K | N20: =N8-N14 -> -56.34502351 | O20: =O8-O14 -> 506.2394418 | P20: =P8-P14 -> 281.1972092 | R20: 90 | S20: 5.099831069
C21: =ROUND((F15-F11)/(E15*-1),0) -> 225 | D21: =F7+(E7*C21) -> 3.749577673 | E21: =F21-G21 -> 356.1549765 | F21: =(D14*C21*C21)+(E14*C21) -> 843.6549765 | G21: =(E6*C21)+F6 -> 487.5 | R21: 96 | S21: 5.039819807
R22: 102 | S22: 4.979808545
B23: Preisdifferenzierung | E23: Preisstruktur | G23: Menge | R23: 108 | S23: 4.919797283
B24: p2 | C24: 5 | D24: =IF(OR(C24>F7,G24<0),"nicht definiert","definiert") -> definiert | E24: =IF(AND(C24>C26,C24>C25),"Hochpreis",IF(AND(C24<C26,C24<C25),"Niedrigpreis","Mittelpreis")) -> Hochpreis | F24: =IF(E24="Hochpreis",1,IF(E24="Mittelpreis",2,3)) -> 1 | G24: =ROUND((C24-F7)/(E7),0) -> 100 | R24: 114 | S24: 4.859786021
B25: p3 | C25: 4 | D25: =IF(OR(C25>F7,G25<0),"nicht definiert","definiert") -> definiert | E25: =IF(AND(C25>C26,C25>C24),"Hochpreis",IF(AND(C25<C26,C25<C24),"Niedrigpreis","Mittelpreis")) -> Mittelpreis | F25: =IF(E25="Hochpreis",1,IF(E25="Mittelpreis",2,3)) -> 2 | G25: =ROUND((C25-F7)/E7,0) -> 200 | R25: 120 | S25: 4.799774759
B26: pc | C26: =D21 -> 3.749577673 | D26: definiert | E26: =IF(AND(C26>C24,C26>C25),"Hochpreis",IF(AND(C26<C24,C26<C25),"Niedrigpreis","Mittelpreis")) -> Niedrigpreis | F26: =IF(E26="Hochpreis",1,IF(E26="Mittelpreis",2,3)) -> 3 | G26: =C21 -> 225 | R26: 126 | S26: 4.739763497
R27: 132 | S27: 4.679752235
B28: Umsatz | C28: =IF(AND(F26=1,F24=2),N6,IF(AND(F26=1,F25=2),N8,IF(AND(F24=1,F26=2),O6,IF(AND(F24=1,F25=2),O8,IF(AND(F25=1,F26=2),P6,P8))))) -> 993.7394418 | D28: Gewinn mit Preisdifferenzierung | G28: =C30 -> 506.2394418 | R28: 138 | S28: 4.619740973
B29: Kosten | C29: =IF(AND(F26=1,F24=2),N12,IF(AND(F26=1,F25=2),N14,IF(AND(F24=1,F26=2),O12,IF(AND(F24=1,F25=2),O14,IF(AND(F25=1,F26=2),P12,P14))))) -> 487.5 | D29: Gewinn ohne Preisdifferenzierung | G29: =E21 -> 356.1549765 | R29: 144 | S29: 4.559729711
B30: Gewinn | C30: =C28-C29 -> 506.2394418 | D30: Differenz | G30: =G28-G29 -> 150.0844653 | R30: 150 | S30: 4.499718449
R31: 156 | S31: 4.439707187
R32: 162 | S32: 4.379695925
R33: 168 | S33: 4.319684663
M34: Matrix der Preis-Mengen-Kombinationen (Datenreihen für das Punktdiagramm) | R34: 174 | S34: 4.259673401
R35: 180 | S35: 4.199662139
M36: Cournotscher Punkt | R36: 186 | S36: 4.139650877
M37: =C21 -> 225 | N37: 0 | O37: 0 | P37: =D21 -> 3.749577673 | R37: 192 | S37: 4.079639615
M38: =C21 -> 225 | N38: =D21 -> 3.749577673 | O38: =C21 -> 225 | P38: =D21 -> 3.749577673 | R38: 198 | S38: 4.019628352
M39: Preis 2, Menge 2 | R39: 204 | S39: 3.95961709
M40: =G24 -> 100 | N40: 0 | O40: 0 | P40: =C24 -> 5 | R40: 210 | S40: 3.899605828
M41: =G24 -> 100 | N41: =C24 -> 5 | O41: =G24 -> 100 | P41: =C24 -> 5 | R41: 216 | S41: 3.839594566
M42: Preis 3, Menge 3 | R42: 222 | S42: 3.779583304
M43: =G25 -> 200 | N43: 0 | O43: 0 | P43: =C25 -> 4 | R43: 228 | S43: 3.719572042
M44: =G25 -> 200 | N44: =C25 -> 4 | O44: =G25 -> 200 | P44: =C25 -> 4 | R44: 234 | S44: 3.65956078
R45: 240 | S45: 3.599549518
N46: Matrix der Preis-Absatz-Funktion (Datenreihen für dasPunktdiagramm) | R46: 246 | S46: 3.539538256
R47: 252 | S47: 3.479526994
R48: 258 | S48: 3.419515732
N49: 0 | O49: =F7 -> 6 | R49: 264 | S49: 3.35950447
N50: =F16 -> 600 | O50: 0 | R50: 270 | S50: 3.299493208
R51: 276 | S51: 3.239481946
R52: 282 | S52: 3.179470684
R53: 288 | S53: 3.119459422
R54: 294 | S54: 3.05944816
R55: 300 | S55: 2.999436898
R56: 306 | S56: 2.939425636
R57: 312 | S57: 2.879414374
R58: 318 | S58: 2.819403112
R59: 324 | S59: 2.75939185
B60: Berechnungen: Spalte N - S; Schriftfarbe: weiß | R60: 330 | S60: 2.699380587
R61: 336 | S61: 2.639369325
R62: 342 | S62: 2.579358063
R63: 348 | S63: 2.519346801
R64: 354 | S64: 2.459335539
R65: 360 | S65: 2.399324277
R66: 366 | S66: 2.339313015
R67: 372 | S67: 2.279301753
R68: 378 | S68: 2.219290491
R69: 384 | S69: 2.159279229
R70: 390 | S70: 2.099267967
R71: 396 | S71: =$F$7+$E$7*R71 -> 2.039256705
R72: =R71+$R$6 -> 402 | S72: 1.979245443
R73: 408 | S73: 1.919234181
R74: 414 | S74: 1.859222919
R75: 420 | S75: 1.799211657
R76: 426 | S76: 1.739200395
R77: 432 | S77: 1.679189133
R78: 438 | S78: 1.619177871
R79: 444 | S79: 1.559166609
R80: 450 | S80: 1.499155347
R81: 456 | S81: 1.439144085
R82: 462 | S82: 1.379132822
R83: 468 | S83: 1.31912156
R84: 474 | S84: 1.259110298
R85: 480 | S85: 1.199099036
R86: 486 | S86: 1.139087774
R87: 492 | S87: 1.079076512
R88: 498 | S88: 1.01906525
R89: 504 | S89: 0.9590539882
R90: 510 | S90: 0.8990427261
R91: 516 | S91: 0.8390314641
R92: 522 | S92: 0.779020202
R93: 528 | S93: 0.71900894
R94: 534 | S94: 0.658997678
R95: 540 | S95: 0.5989864159
R96: 546 | S96: 0.5389751539
R97: 552 | S97: 0.4789638918
R98: 558 | S98: 0.4189526298
R99: 564 | S99: 0.3589413677
R100: 570 | S100: 0.2989301057
R101: 576 | S101: 0.2389188436
R102: 582 | S102: 0.1789075816
R103: 588 | S103: 0.1188963195
R104: 594 | S104: 0.0588850575
R105: =F16 -> 600 | S105: -0.001126204547

Sheet FunktionenMonopol
B4: Aufgabe 1 | D4: Aufgabe 2 | F4: Aufgabe 3 | H4: Aufgabe 4 | J4: Aufgabe 5 | L4: Aufgabe 6 | N4: Aufgabe 7 | P4: Aufgabe 8 | R4: 1/25 | S4: 0.04 | T4: 25
A5: K | B5: 300 | C5: 10000 | D5: 4 | E5: 5100 | F5: 4 | G5: 5100 | H5: 4 | I5: 5100 | J5: 2 | K5: 2450 | L5: 14 | M5: 5000 | N5: 14 | O5: 5000 | P5: 4 | Q5: 2950 | R5: 1/75 | S5: 0.01333333333 | T5: 75
A6: PAF | B6: -15 | C6: 1200 | D6: -0.00125 | E6: 15 | F6: -0.01 | G6: 22 | H6: -0.002 | I6: 12 | J6: -0.45 | K6: 92 | L6: -0.2 | M6: 100 | N6: -0.5 | O6: 120 | P6: -0.355 | Q6: 85 | R6: 1/125 | S6: 0.008 | T6: 125
R7: 1/40 | S7: 0.025 | T7: 40
B8: Aufgabe 9 | D8: Aufgabe 10 | F8: Aufgabe 11 | H8: Aufgabe 12 | J8: Aufgabe 13 | L8: Aufgabe 14 | N8: Aufgabe 15 | P8: Aufgabe 16 | R8: 1/60 | S8: 0.01666666667 | T8: 60
A9: K | B9: 6.8 | C9: 580 | D9: 9 | E9: 3250 | F9: 9 | G9: 3250 | H9: 9 | I9: 3250 | J9: 5.8 | K9: 1900 | L9: 5.8 | M9: 1900 | N9: 5.8 | O9: 1900 | P9: 89 | Q9: 29950 | R9: 1/80 | S9: 0.0125 | T9: 80
A10: PAF | B10: -1.15 | C10: 85 | D10: -0.1985 | E10: 100 | F10: -0.5015 | G10: 120 | H10: -0.1055 | I10: 60 | J10: -0.45 | K10: 92 | L10: -1.25 | M10: 125 | N10: -0.3 | O10: 55 | P10: -2.2 | Q10: 920 | R10: 1/90 | S10: 0.01111111111 | T10: 90
R11: 1/20 | S11: 0.05 | T11: 20
B12: Aufgabe 17 | D12: Aufgabe 18 | F12: Aufgabe 19 | H12: Aufgabe 20 | J12: Aufgabe 21 | L12: Aufgabe 22 | N12: Aufgabe 23 | P12: Aufgabe 24 | R12: 1/30 | S12: 0.03333333333 | T12: 30
A13: K | B13: 89 | C13: 29950 | D13: 89 | E13: 29950 | F13: 12 | G13: 5100 | H13: 12 | I13: 5100 | J13: 12 | K13: 5100 | L13: 40 | M13: 2950 | N13: 40 | O13: 75500 | P13: 20 | Q13: 20000 | R13: 1/300 | S13: 0.003333333333 | T13: 300
A14: PAF | B14: -4.4 | C14: 1100 | D14: -3.1 | E14: 925 | F14: -0.25 | G14: 150 | H14: -0.5 | I14: 190 | J14: -0.25 | K14: 120 | L14: -0.125 | M14: 92 | N14: -0.125 | O14: 300 | P14: -0.00333 | Q14: 40 | R14: 1/125 | S14: 0.004444444444 | T14: 225
R15: 1/45 | S15: 0.02222222222 | T15: 45
B16: Aufgabe 17 | D16: Aufgabe 18 | F16: Aufgabe 19 | H16: Aufgabe 20 | J16: Aufgabe 21 | L16: Aufgabe 22 | N16: Aufgabe 23 | P16: Aufgabe 24 | R16: 1/150 | S16: 0.006666666667 | T16: 150
A17: K | B17: 89 | C17: 29950 | D17: 89 | E17: 29950 | F17: 12 | G17: 5100 | H17: 12 | I17: 5100 | J17: 12 | K17: 5100 | L17: 40 | M17: 2950 | N17: 40 | O17: 75500 | R17: 1/250 | S17: 0.004 | T17: 250
A18: PAF | B18: -4.4 | C18: 1100 | D18: -3.1 | E18: 925 | F18: -0.25 | G18: 150 | H18: -0.5 | I18: 190 | J18: -0.25 | K18: 120 | L18: -0.125 | M18: 92 | N18: -0.125 | O18: 300 | R18: 1/15 | S18: 0.06666666667 | T18: 15
R19: 1/8 | S19: 0.125 | T19: 8
B20: Aufgabe 25 | D20: Aufgabe 26 | F20: Aufgabe 27 | H20: Aufgabe 28 | J20: Aufgabe 29 | L20: Aufgabe 30 | N20: Aufgabe 31 | P20: Aufgabe 32 | R20: 1/16 | S20: 0.0625 | T20: 16
A21: K | B21: 400 | C21: 29950 | D21: 1.5 | E21: 150 | R21: 1/32 | S21: 0.03125 | T21: 32
A22: PAF | B22: -4.4 | C22: 1100 | D22: -0.01000187701 | E22: 6 | R22: 1/64 | S22: 0.015625 | T22: 64
R23: 1/500 | S23: 0.002 | T23: 500
A25: Hinweis: Sie können Funktionen markieren und kopieren und dann in die Felder E6 - F7 in der Tabelle "Monopol" einfügen. Das Gewinnmaximum (Cournotscher Punkt) wird dann ermittelt.
